bitfinex/quotes_BTCUSD_20251208
["timestamp","ask_amount","ask_price","bid_price","bid_amount"]
[1765221622720,0.0506,90141.0,90140.0,0.22187534]
[1765221623129,0.0516,90141.0,90140.0,0.22187534]
[1765221623537,0.0506,90141.0,90140.0,0.22187534]
[1765221623750,0.0556,90141.0,90140.0,0.22187534]
[1765221623931,0.0506,90141.0,90140.0,0.22187534]
[1765221624132,0.002,90141.0,90140.0,0.22259672]
[1765221625969,0.01746,90141.0,90140.0,0.22259672]
[1765221626300,0.04076,90141.0,90140.0,0.22259672]
[1765221626841,0.01746,90141.0,90140.0,0.22259672]
[1765221627548,0.002,90141.0,90140.0,0.22259672]
[1765221628700,0.002,90141.0,90140.0,0.23860672]
[1765221629529,0.01184,90156.0,90155.0,0.22184016]
[1765221629966,0.0506,90156.0,90155.0,0.22184016]
[1765221630946,0.0526,90156.0,90155.0,0.22184016]
[1765221632706,0.01109213,90154.0,90151.0,0.1456]
[1765221632855,0.23730754,90152.0,90151.0,0.1456]
[1765221633055,0.01635149,90152.0,90151.0,0.1456]
[1765221633258,0.03965149,90152.0,90151.0,0.1456]
[1765221633493,0.26149903,90152.0,90151.0,0.1456]
[1765221634047,0.26249903,90152.0,90151.0,0.1456]
[1765221634973,0.04065149,90152.0,90151.0,0.1456]
[1765221635154,0.04165149,90152.0,90151.0,0.1456]
[1765221635353,0.04165149,90152.0,90151.0,0.36745]
[1765221635618,0.04065149,90152.0,90151.0,0.36745]
[1765221636089,0.04365149,90152.0,90151.0,0.36745]
[1765221636469,0.04365149,90152.0,90151.0,0.22185]
[1765221636607,0.04365149,90152.0,90149.0,0.01109274]
[1765221636813,0.0233,90151.0,90150.0,0.22185246]
[1765221637241,0.03876,90151.0,90150.0,0.22185246]
[1765221637640,0.03876,90151.0,90149.0,0.22185262]
[1765221637838,0.03876,90150.0,90149.0,0.23294536]
[1765221638501,0.01546,90150.0,90149.0,0.23366674]
[1765221639052,0.03876,90150.0,90149.0,0.23366674]
[1765221639670,0.001,90150.0,90149.0,0.23366674]
[1765221640084,0.03976,90150.0,90149.0,0.23366674]
[1765221641167,0.04014868,90150.0,90149.0,0.23466674]
[1765221641566,0.04014868,90150.0,90149.0,0.23366674]
[1765221641987,0.04014868,90150.0,90149.0,0.23294536]
[1765221644201,0.01684868,90150.0,90149.0,0.23366674]
[1765221644403,0.00138868,90150.0,90149.0,0.23366674]
[1765221645452,0.00138868,90150.0,90149.0,0.37926674]
[1765221645655,0.00138868,90150.0,90149.0,0.39589674]
[1765221646069,0.00038868,90150.0,90149.0,0.39589674]
[1765221646393,0.00038868,90150.0,90149.0,0.39689674]
[1765221646596,0.00038868,90150.0,90149.0,0.38026674]
[1765221647150,0.00038868,90150.0,90149.0,0.38126674]
[1765221647489,0.00038868,90150.0,90149.0,0.39789674]
[1765221650617,0.00038868,90150.0,90149.0,0.38126674]
[1765221651657,0.00038868,90150.0,90149.0,0.41283674]
[1765221651867,0.00038868,90150.0,90149.0,0.65375973]
[1765221652964,0.00038868,90150.0,90149.0,0.65575973]
[1765221653376,0.00038868,90150.0,90149.0,0.65475973]
[1765221653616,0.00038868,90150.0,90149.0,0.65575973]
[1765221654193,0.00038868,90150.0,90149.0,0.65275973]
[1765221654515,0.00038868,90150.0,90149.0,0.65775973]
[1765221654675,0.00038868,90150.0,90149.0,0.67535973]
[1765221654889,0.00038868,90150.0,90149.0,0.67835973]
[1765221655916,0.00038868,90150.0,90149.0,0.67335973]
[1765221656069,0.00038868,90150.0,90149.0,0.67535973]
[1765221656274,0.00038868,90150.0,90149.0,0.67235973]
[1765221656470,0.00038868,90150.0,90149.0,0.67435973]
[1765221656695,0.00023919,90158.0,90157.0,0.28435823]
[1765221656894,0.00029952,90158.0,90157.0,0.30170961]
[1765221657093,0.00029952,90158.0,90157.0,0.46424961]
[1765221658176,0.00029952,90158.0,90157.0,0.45030961]
[1765221658433,0.00029952,90158.0,90157.0,0.45230961]
[1765221659251,0.00029952,90158.0,90157.0,0.46924961]
[1765221660586,1e-08,90158.0,90157.0,0.79224961]
[1765221660949,1e-08,90158.0,90157.0,2.79669029]
[1765221661374,0.0004,90180.0,90169.0,0.28432871]
[1765221661532,0.0004,90180.0,90169.0,0.44643008]
[1765221661731,0.0004,90180.0,90169.0,0.46337008]
[1765221661972,0.00075872,90170.0,90169.0,0.46337008]
[1765221662363,0.00075872,90170.0,90169.0,0.46837008]
[1765221662770,0.00075872,90170.0,90169.0,0.49057008]
[1765221663590,0.00075872,90170.0,90169.0,0.48557008]
[1765221663794,0.00075872,90170.0,90169.0,0.48757008]
[1765221663993,0.00075872,90170.0,90169.0,0.49057008]
[1765221664356,0.00075872,90170.0,90169.0,0.47363008]
[1765221664561,0.00075872,90170.0,90169.0,0.38890709]
[1765221664764,0.00075872,90170.0,90169.0,0.37312709]
[1765221664765,0.01639872,90170.0,90169.0,0.37312709]
[1765221665388,0.03974872,90170.0,90169.0,0.37240571]
[1765221665591,0.03974872,90170.0,90169.0,0.37040571]
[1765221665988,0.03974872,90170.0,90169.0,0.37240571]
[1765221666552,0.01639872,90170.0,90169.0,0.36740571]
[1765221666827,0.00175872,90170.0,90169.0,0.36840571]
[1765221667340,0.01639872,90170.0,90169.0,0.36740571]
[1765221667478,0.01839872,90170.0,90169.0,0.36740571]
[1765221672942,0.00275872,90170.0,90169.0,0.38323709]
[1765221673103,0.00275872,90170.0,90169.0,0.40017709]
[1765221673945,0.00275872,90170.0,90169.0,0.48490008]
[1765221674190,0.00075872,90170.0,90169.0,0.80790008]
[1765221674405,0.0004,90180.0,90179.0,0.28430411]
[1765221674528,0.00048179,90180.0,90179.0,0.33927549]
[1765221675387,0.00048179,90180.0,90179.0,0.66227549]
[1765221675789,0.00048179,90180.0,90179.0,0.66427549]
[1765221676190,0.00048179,90180.0,90179.0,0.64207549]
[1765221676553,0.00048179,90180.0,90179.0,0.66427549]
[1765221676955,0.00048179,90180.0,90179.0,0.66627549]
[1765221678212,0.00048179,90180.0,90179.0,0.64933549]
[1765221678408,0.00048179,90180.0,90179.0,0.62713549]
[1765221679134,0.00048179,90180.0,90179.0,0.2265025]
[1765221679697,0.00048179,90180.0,90179.0,0.2225025]
[1765221679876,0.01681179,90180.0,90179.0,0.2225025]
[1765221680079,0.04137067,90180.0,90179.0,0.22178112]
[1765221680275,0.04137067,90180.0,90178.0,0.22178358]
[1765221680276,0.04226216,90180.0,90178.0,0.22178338]
[1765221680479,0.01108942,90176.0,90173.0,0.22179573]
[1765221680685,0.00089149,90176.0,90173.0,0.2328837]
[1765221680886,0.02326,90175.0,90174.0,0.36739257]
[1765221681091,0.02326,90175.0,90174.0,0.14559999]
[1765221681092,0.02415149,90175.0,90174.0,0.14559999]
[1765221681325,0.05267149,90175.0,90174.0,0.14559999]
[1765221681985,0.07487149,90175.0,90174.0,0.14559999]
[1765221682819,0.07487149,90175.0,90174.0,0.36739341]
[1765221683235,0.05267149,90175.0,90174.0,0.36739341]
[1765221683437,0.01308149,90175.0,90174.0,0.36739341]
[1765221683590,0.00389149,90175.0,90174.0,0.36739341]
[1765221683803,0.04348149,90175.0,90174.0,0.36739341]
[1765221684203,0.003,90175.0,90174.0,0.36739341]
[1765221684925,0.003,90175.0,90174.0,0.36839341]
[1765221685140,0.003,90175.0,90174.0,0.40116479]
[1765221685349,0.00048179,90180.0,90179.0,0.22178112]
[1765221685550,0.00048179,90180.0,90179.0,0.2376125]
[1765221686654,0.00348179,90180.0,90179.0,0.2376125]
[1765221686934,0.00348179,90180.0,90179.0,0.38321249]
[1765221687136,0.00378067,90180.0,90179.0,0.38321249]
[1765221688444,0.00078067,90180.0,90179.0,0.38321249]
[1765221688657,0.00078067,90180.0,90179.0,0.38421249]
[1765221689109,0.00078067,90180.0,90179.0,0.38621249]
[1765221690194,0.00078067,90180.0,90179.0,0.41339249]
[1765221690403,0.00078067,90180.0,90179.0,0.39645249]
[1765221690606,0.00078067,90180.0,90179.0,0.38134249]
[1765221690766,0.04037067,90180.0,90179.0,0.37110249]
[1765221690971,0.04037067,90180.0,90179.0,0.37038111]
[1765221691397,0.04037067,90180.0,90179.0,0.36738111]
[1765221691603,0.04126216,90180.0,90179.0,0.36738111]
[1765221691801,0.04326216,90180.0,90179.0,0.36738111]
[1765221692001,0.04326216,90180.0,90179.0,0.14559999]
[1765221692002,0.06346216,90180.0,90179.0,0.14559999]
[1765221692382,0.06746216,90180.0,90179.0,0.36738111]
[1765221692576,0.06846216,90180.0,90179.0,0.14559999]
[1765221692779,0.06846216,90180.0,90178.0,0.36738264]
[1765221692989,0.06846216,90180.0,90152.0,0.03330844]
[1765221692990,0.02415149,90179.0,90152.0,0.03330844]
[1765221693209,0.02852,90156.0,90155.0,0.23293216]
[1765221693612,0.05178,90156.0,90155.0,0.23293216]
[1765221694261,0.01109262,90150.0,90147.0,0.01109299]
[1765221694496,0.01109262,90150.0,90144.0,0.01109336]
[1765221694497,0.01198411,90150.0,90144.0,0.01109336]
[1765221694700,0.01633,90145.0,90142.0,0.22187215]
[1765221694988,0.00089149,90145.0,90144.0,0.22186723]
[1765221695400,0.01722149,90145.0,90144.0,0.22192756]
[1765221695602,0.01722149,90145.0,90144.0,0.22292756]
[1765221695811,0.04048149,90145.0,90144.0,0.22292756]
[1765221696017,0.04248149,90145.0,90144.0,0.22292756]
[1765221696529,0.04248149,90145.0,90144.0,0.00106033]
[1765221696731,0.06468149,90145.0,90144.0,0.00106033]
[1765221696911,0.06468149,90145.0,90144.0,6.033e-05]
[1765221698170,0.07068149,90145.0,90144.0,6.033e-05]
[1765221698394,0.06868149,90145.0,90144.0,6.033e-05]
[1765221698737,0.07068149,90145.0,90144.0,6.033e-05]
[1765221699352,0.17332387,90145.0,90144.0,6.033e-05]
[1765221699788,0.07068149,90145.0,90144.0,6.033e-05]
[1765221700156,0.04848149,90145.0,90144.0,6.033e-05]
[1765221700373,0.07068149,90145.0,90144.0,6.033e-05]
[1765221700982,0.07068149,90145.0,90110.0,0.01109754]
[1765221700983,0.01109693,90115.0,90110.0,0.01109754]
[1765221701352,8.171e-05,90115.0,90114.0,0.23303814]
[1765221701745,0.01641171,90115.0,90114.0,0.23303814]
[1765221702159,0.03967171,90115.0,90112.0,0.0110973]
[1765221702304,0.02334171,90115.0,90113.0,0.22194355]
[1765221702504,0.01542,90113.0,90112.0,0.22194602]
[1765221702945,0.03919,90113.0,90112.0,0.22194602]
[1765221703929,0.04019,90113.0,90112.0,0.22194602]
[1765221704928,0.001,90113.0,90112.0,0.2226674]
[1765221705128,0.01642,90113.0,90112.0,0.2226674]
[1765221705488,0.001,90113.0,90112.0,0.2226674]
[1765221706167,8.171e-05,90115.0,90112.0,0.2226674]
[1765221706168,8.171e-05,90115.0,90114.0,0.22194109]
[1765221706521,0.01550171,90115.0,90114.0,0.22194109]
[1765221706722,0.03927171,90115.0,90114.0,0.22194109]
[1765221707506,8.171e-05,90115.0,90114.0,0.22194109]
[1765221707705,8.171e-05,90115.0,90114.0,0.22266247]
[1765221710159,8.171e-05,90115.0,90114.0,0.22466247]
[1765221710549,8.171e-05,90115.0,90114.0,0.37026246]
[1765221710745,8.171e-05,90115.0,90114.0,0.38621246]
[1765221711373,8.171e-05,90115.0,90114.0,0.37026246]
[1765221711931,8.171e-05,90115.0,90114.0,0.36826246]
[1765221712334,8.171e-05,90115.0,90114.0,0.38521246]
[1765221713317,8.171e-05,90115.0,90114.0,0.46767545]
[1765221713465,8.171e-05,90115.0,90114.0,0.66727546]
[1765221713667,8.171e-05,90115.0,90114.0,0.81287545]
[1765221714407,8.171e-05,90115.0,90114.0,0.80987545]
[1765221714746,8.171e-05,90115.0,90114.0,0.81487545]
[1765221715101,8.171e-05,90115.0,90114.0,0.81387545]
[1765221715319,8.171e-05,90115.0,90114.0,0.81587545]
[1765221718168,8.171e-05,90115.0,90114.0,0.82746545]
[1765221719993,0.03596,90155.0,90154.0,0.22184262]
[1765221719994,0.01219,90155.0,90154.0,0.22184262]
[1765221720306,0.01239,90166.0,90165.0,0.23290633]
[1765221720484,0.01336764,90166.0,90165.0,0.23290633]
[1765221720692,8.615e-05,90166.0,90165.0,0.23290633]
[1765221721043,0.02824615,90166.0,90165.0,0.23290633]
[1765221721243,0.05381764,90166.0,90165.0,0.23290633]
[1765221721444,0.05481764,90166.0,90165.0,0.23290633]
[1765221721669,0.00108615,90166.0,90165.0,0.24820633]
[1765221721874,0.00108615,90166.0,90165.0,0.24892771]
[1765221722230,0.00108615,90166.0,90165.0,0.27112771]
[1765221722407,0.00108615,90166.0,90165.0,0.24892771]
[1765221722575,8.615e-05,90166.0,90165.0,0.24892771]
[1765221722773,0.00108615,90166.0,90165.0,0.24892771]
[1765221723629,0.00108615,90166.0,90165.0,0.23362771]
[1765221724583,0.00108615,90166.0,90165.0,0.6745907]
[1765221725381,0.00108615,90166.0,90165.0,0.6735907]
[1765221725911,8.615e-05,90166.0,90165.0,0.6745907]
[1765221726103,8.615e-05,90166.0,90165.0,0.6775907]
[1765221726842,8.615e-05,90166.0,90165.0,0.6745907]
[1765221727086,8.615e-05,90166.0,90165.0,0.82219069]
[1765221727295,8.615e-05,90166.0,90165.0,0.7195277]
[1765221727505,8.615e-05,90166.0,90165.0,0.7175277]
[1765221727695,8.615e-05,90166.0,90165.0,0.7235277]
[1765221728120,8.615e-05,90166.0,90165.0,0.7205277]
[1765221728495,8.615e-05,90166.0,90165.0,0.7394677]
[1765221728697,8.615e-05,90166.0,90165.0,0.7225277]
[1765221728901,8.615e-05,90166.0,90165.0,0.7195277]
[1765221729117,8.615e-05,90166.0,90165.0,0.7364677]
[1765221729325,8.615e-05,90166.0,90165.0,0.7374677]
[1765221730265,8.615e-05,90166.0,90165.0,0.7205277]
[1765221730454,8.615e-05,90166.0,90165.0,0.7427277]
[1765221731260,8.615e-05,90166.0,90165.0,0.7205277]
[1765221731474,8.615e-05,90166.0,90165.0,0.7720577]
[1765221733734,8.615e-05,90166.0,90165.0,0.83458069]
[1765221736877,8.615e-05,90166.0,90165.0,0.79774069]
[1765221737069,8.615e-05,90166.0,90165.0,0.3946177]
[1765221737272,8.615e-05,90166.0,90165.0,0.3822277]
[1765221738658,0.01595615,90166.0,90165.0,0.3822277]
[1765221738968,8.615e-05,90166.0,90165.0,0.3822277]
[1765221740572,8.615e-05,90166.0,90165.0,0.47754069]
[1765221740826,8.615e-05,90166.0,90165.0,0.49974069]
[1765221741024,8.615e-05,90166.0,90165.0,0.82274069]
[1765221742380,8.615e-05,90166.0,90165.0,0.82074069]
[1765221742697,8.615e-05,90166.0,90165.0,0.81974069]
[1765221743156,8.615e-05,90166.0,90165.0,0.82374069]
[1765221743338,0.0004,90180.0,90176.0,0.06252299]
[1765221743541,0.0004,90180.0,90177.0,0.16769244]
[1765221743739,0.0004,90180.0,90177.0,0.39019986]
[1765221743940,0.0004,90180.0,90177.0,0.36802126]
[1765221744141,0.0004,90180.0,90177.0,0.38387126]
[1765221744583,0.0004,90180.0,90177.0,0.40607126]
[1765221745134,0.00123911,90178.0,90177.0,0.40607126]
[1765221745519,0.00123911,90178.0,90177.0,0.38387126]
[1765221745721,0.00123911,90178.0,90177.0,0.38487126]
[1765221746136,0.00123911,90178.0,90177.0,0.36902126]
[1765221746137,0.01710911,90178.0,90177.0,0.36902126]
[1765221748347,0.0423606,90178.0,90177.0,0.001]
[1765221748501,0.0423606,90178.0,90177.0,0.22278604]
[1765221748882,0.0423606,90178.0,90177.0,0.001]
[1765221749089,0.0423606,90178.0,90177.0,0.22178604]
[1765221749499,0.0413606,90178.0,90175.0,0.14551384]
[1765221749699,0.01587,90176.0,90175.0,0.14551384]
[1765221750246,0.01587,90176.0,90175.0,0.3673048]
[1765221750482,0.04023,90176.0,90175.0,0.3673048]
[1765221750732,0.04023,90176.0,90175.0,0.14551384]
[1765221750733,0.26290999,90176.0,90175.0,0.14551384]
[1765221750943,0.01108967,90174.0,90171.0,0.01109004]
[1765221751148,0.00089149,90174.0,90171.0,0.01109004]
[1765221751346,0.02436,90173.0,90172.0,0.22179834]
[1765221751624,0.02525149,90173.0,90172.0,0.22179834]
[1765221751837,0.02525149,90173.0,90171.0,0.23289035]
[1765221751838,0.02786,90172.0,90171.0,0.23289035]
[1765221752208,0.05222,90172.0,90171.0,0.23289035]
[1765221752707,0.23289084,90171.0,90168.0,0.0110904]
[1765221752891,0.01587,90169.0,90168.0,0.23289858]
[1765221753293,0.04023,90169.0,90168.0,0.23289858]
[1765221753498,0.01899,90172.0,90171.0,0.2218008]
[1765221753706,0.04335,90172.0,90171.0,0.2218008]
[1765221753907,0.05922,90172.0,90171.0,0.2218008]
[1765221754101,0.05322,90172.0,90169.0,0.01109028]
[1765221754307,0.01587,90170.0,90169.0,0.232896]
[1765221755611,0.01987,90170.0,90169.0,0.232896]
[1765221755814,0.004,90170.0,90169.0,0.27487738]
[1765221756074,0.004,90170.0,90169.0,0.29707738]
[1765221756285,0.004,90170.0,90169.0,0.24208738]
[1765221756432,0.004,90170.0,90169.0,0.232896]
[1765221756640,0.004,90170.0,90152.0,0.01694]
[1765221756641,0.01109077,90165.0,90159.0,0.01109151]
[1765221756841,0.23381286,90163.0,90159.0,0.01109151]
[1765221757053,0.01587,90160.0,90159.0,0.01109151]
[1765221757251,0.01587,90160.0,90159.0,0.23292183]
[1765221757842,0.01587,90160.0,90158.0,0.23291966]
[1765221757843,0.22183278,90158.0,90154.0,0.01109213]
[1765221757974,0.038952,90155.0,90149.0,0.23294636]
[1765221758194,0.01587,90150.0,90149.0,0.22185492]
[1765221758409,0.01587,90150.0,90148.0,0.23295025]
[1765221758410,0.0176,90160.0,90159.0,0.22183032]
[1765221758608,0.0186,90160.0,90159.0,0.22183032]
[1765221758870,0.03447,90160.0,90159.0,0.22183032]
[1765221758996,0.01199,90163.0,90160.0,0.01109139]
[1765221759375,0.0176,90162.0,90160.0,0.23291881]
[1765221759588,0.01587,90161.0,90160.0,0.23291881]
[1765221760752,0.01887,90161.0,90160.0,0.23291881]
[1765221761347,0.003,90161.0,90160.0,0.23291881]
[1765221761954,0.004,90161.0,90160.0,0.23291881]
[1765221762869,0.02031,90161.0,90160.0,0.23291881]
[1765221763078,0.0444,90161.0,90160.0,0.23291881]
[1765221763293,0.0444,90161.0,90150.0,0.2218509]
[1765221763294,0.01109151,90159.0,90151.0,0.22184781]
[1765221763551,0.01109286,90148.0,90140.0,0.01109385]
[1765221763752,0.01109286,90148.0,90120.0,0.01694]
[1765221763753,0.0176,90147.0,90146.0,0.01109311]
[1765221763973,0.0176,90147.0,90145.0,0.22186456]
[1765221764186,0.0222,90144.0,90143.0,0.01109348]
[1765221764386,0.03851,90144.0,90143.0,0.01109348]
[1765221764618,0.0626,90144.0,90143.0,0.01109348]
[1765221764813,0.0626,90144.0,90143.0,0.23296297]
[1765221765441,0.0636,90144.0,90143.0,0.23296297]
[1765221766243,0.0636,90144.0,90143.0,0.22186969]
[1765221766753,0.01731,90144.0,90143.0,0.22186969]
[1765221766955,0.001,90144.0,90143.0,0.23895107]
[1765221767162,0.001,90144.0,90143.0,0.25589107]
[1765221767758,0.0176,90156.0,90155.0,0.22184016]
[1765221768607,0.0176,90156.0,90155.0,0.23820016]
[1765221769085,0.01199,90168.0,90162.0,0.22182294]
[1765221769289,0.03048149,90163.0,90162.0,0.22182294]
[1765221770500,0.01169,90176.0,90175.0,0.22179096]
[1765221770839,0.22215612,90190.0,90177.0,0.22178604]
[1765221770840,0.01108819,90186.0,90177.0,0.22178604]
[1765221770978,0.01783911,90178.0,90177.0,0.22178604]
[1765221771693,0.03414911,90178.0,90177.0,0.22178604]
[1765221771980,0.05923911,90178.0,90177.0,0.22178604]
[1765221772166,0.03514911,90178.0,90177.0,0.22178604]
[1765221772371,0.03614911,90178.0,90177.0,0.22178604]
[1765221772570,0.06023911,90178.0,90177.0,0.22178604]
[1765221772928,0.05923911,90178.0,90177.0,0.22178604]
[1765221773295,0.06023911,90178.0,90177.0,0.22178604]
[1765221773666,0.05823911,90178.0,90177.0,0.22178604]
[1765221776225,0.0591306,90178.0,90177.0,0.22178604]
[1765221777304,0.0601306,90178.0,90177.0,0.22178604]
[1765221777504,0.0611306,90178.0,90177.0,0.22178604]
[1765221782064,0.00223911,90178.0,90177.0,0.23686604]
[1765221782268,0.00223911,90178.0,90177.0,0.23758742]
[1765221782697,0.00223911,90178.0,90177.0,0.22250742]
[1765221782912,0.00123911,90178.0,90177.0,0.22250742]
[1765221783085,0.00123911,90178.0,90177.0,0.22450742]
[1765221783447,0.00023911,90178.0,90177.0,0.22450742]
[1765221783855,0.26185269,90178.0,90177.0,0.002]
[1765221784072,0.30900454,90178.0,90177.0,0.002]
[1765221784275,0.30165269,90178.0,90177.0,0.002]
[1765221784481,0.62465269,90178.0,90177.0,0.002]
[1765221784724,0.62465269,90178.0,90154.0,0.01109213]
[1765221784725,0.0222,90159.0,90156.0,0.01109188]
[1765221784935,0.0176,90158.0,90156.0,0.01109188]
[1765221785139,0.02679,90157.0,90156.0,0.22183763]
[1765221785497,0.02679,90157.0,90150.0,0.01109262]
[1765221785498,0.01109188,90156.0,90148.0,0.01109286]
[1765221785701,0.01198337,90156.0,90153.0,0.01109225]
[1765221785908,0.01198337,90156.0,90153.0,0.23293546]
[1765221786114,0.0153,90154.0,90153.0,0.23302161]
[1765221786310,0.0153,90154.0,90153.0,0.0111784]
[1765221786510,0.01619149,90154.0,90153.0,0.0111784]
[1765221786890,0.04072149,90154.0,90153.0,0.0111784]
[1765221787089,0.04072149,90154.0,90153.0,8.615e-05]
[1765221788139,0.06292149,90154.0,90153.0,8.615e-05]
[1765221788543,0.06592149,90154.0,90153.0,8.615e-05]
[1765221788782,0.06692149,90154.0,90153.0,8.615e-05]
[1765221789252,0.078412,90154.0,90153.0,8.615e-05]
[1765221789639,0.056212,90154.0,90153.0,8.615e-05]
[1765221790009,0.06692149,90154.0,90153.0,8.615e-05]
[1765221790212,0.06292149,90154.0,90153.0,8.615e-05]
[1765221790626,0.01819149,90154.0,90153.0,8.615e-05]
[1765221790809,0.002,90154.0,90153.0,0.01588753]
[1765221791611,0.006,90154.0,90153.0,0.01588753]
[1765221791816,0.0176,90158.0,90155.0,0.011092]
[1765221791951,0.0176,90158.0,90156.0,0.2218377]
[1765221792294,0.01627,90156.0,90155.0,0.22184016]
[1765221793200,0.01627,90156.0,90153.0,0.00108615]
[1765221793201,0.22184016,90155.0,90153.0,0.00108615]
[1765221793405,0.03847,90154.0,90153.0,8.615e-05]
[1765221793630,0.06319,90154.0,90153.0,8.615e-05]
[1765221794360,0.06408149,90154.0,90153.0,8.615e-05]
[1765221795454,0.06808149,90154.0,90153.0,8.615e-05]
[1765221795864,0.07008149,90154.0,90153.0,8.615e-05]
[1765221796725,0.17313163,90154.0,90153.0,8.615e-05]
[1765221797175,0.50644517,90154.0,90153.0,8.615e-05]
[1765221797351,0.49613163,90154.0,90153.0,8.615e-05]
[1765221797967,0.50644268,90154.0,90153.0,8.615e-05]
[1765221798747,0.50444268,90154.0,90153.0,8.615e-05]
[1765221799301,0.73770924,90154.0,90153.0,8.615e-05]
[1765221799504,0.74770924,90154.0,90153.0,0.00108615]
[1765221801081,0.64280493,90154.0,90153.0,0.00108615]
[1765221801280,0.63249388,90154.0,90153.0,0.00108615]
[1765221801740,0.64278911,90154.0,90153.0,0.00108615]
[1765221802662,0.63249388,90154.0,90153.0,0.00108615]
[1765221803407,0.64429984,90154.0,90153.0,0.00108615]
[1765221803633,0.77497912,90154.0,90153.0,0.00108615]
[1765221803839,0.77497912,90154.0,90104.0,0.01109828]
[1765221803840,0.01109779,90108.0,90104.0,0.01109828]
[1765221804041,0.01109779,90108.0,90102.0,0.2219689]
[1765221804042,0.02836,90104.0,90102.0,0.22196978]
[1765221804236,0.01627,90103.0,90101.0,0.23307164]
[1765221804435,0.01209,90109.0,90106.0,0.01109804]
[1765221804640,0.01109668,90117.0,90111.0,0.23304437]
[1765221804641,0.02318693,90115.0,90111.0,0.23304437]
[1765221804912,0.02318693,90115.0,90110.0,0.23304827]
[1765221804913,0.25063907,90114.0,90110.0,0.23304827]
[1765221805208,0.25063907,90114.0,90110.0,0.01109754]
[1765221805209,0.02869705,90114.0,90110.0,0.01109754]
[1765221805500,0.01627,90111.0,90109.0,0.01109767]
[1765221805709,0.01627,90111.0,90109.0,0.23304935]
[1765221805849,0.01627,90111.0,90109.0,0.23305093]
[1765221806053,0.01627,90110.0,90108.0,0.01109779]
[1765221806259,0.01627,90110.0,90108.0,0.23305358]
[1765221806458,0.0176,90109.0,90108.0,0.23305358]
[1765221806667,0.01627,90110.0,90108.0,0.23305358]
[1765221806913,0.0176,90109.0,90108.0,0.23305358]
[1765221807689,0.001,90114.0,90113.0,0.22194355]
[1765221807882,0.01209,90128.0,90127.0,0.22190908]
[1765221808156,0.07068,90128.0,90127.0,0.22190908]
[1765221808382,0.07068,90128.0,90118.0,0.22192899]
[1765221808383,0.05397149,90128.0,90098.0,0.00947]
[1765221808537,0.01627,90114.0,90111.0,0.01109742]
[1765221808724,0.0176,90114.0,90113.0,0.001]
[1765221809137,0.03387,90114.0,90113.0,0.001]
[1765221809341,0.25581214,90114.0,90111.0,0.23304543]
[1765221809537,0.02472,90113.0,90112.0,0.22194491]
[1765221809949,0.02472,90113.0,90111.0,0.23304543]
[1765221810150,0.01627,90112.0,90111.0,0.23304543]
[1765221810352,0.0222,90110.0,90109.0,0.23305097]
[1765221810701,0.03847,90109.0,90108.0,0.01109779]
[1765221810903,0.01627,90109.0,90108.0,0.01109779]
[1765221811125,0.04099,90109.0,90108.0,0.01109779]
[1765221811819,0.04099,90109.0,90108.0,0.23405366]
[1765221811981,0.04199,90109.0,90108.0,0.24005366]
[1765221812839,0.04199,90109.0,90108.0,0.01809779]
[1765221813069,0.04199,90109.0,90108.0,0.007]
[1765221813473,0.04199,90109.0,90108.0,0.22895587]
[1765221815219,0.001,90109.0,90108.0,0.22895587]
[1765221815392,0.001,90109.0,90108.0,0.22967725]
[1765221816599,0.001,90109.0,90108.0,0.24626725]
[1765221816825,0.001,90109.0,90108.0,0.22967725]
[1765221818346,0.01727,90109.0,90108.0,0.22967725]
[1765221818555,0.001,90109.0,90108.0,0.22967725]
[1765221819094,0.04199,90109.0,90108.0,0.22967725]
[1765221819319,0.001,90109.0,90108.0,0.22967725]
[1765221819850,0.01727,90109.0,90108.0,0.22967725]
[1765221820404,0.04199,90109.0,90108.0,0.22967725]
[1765221822402,0.04199,90109.0,90108.0,0.22895587]
[1765221822992,0.34325049,90109.0,90108.0,0.007]
[1765221823195,0.28614341,90109.0,90108.0,0.007]
[1765221823637,0.60914341,90109.0,90108.0,0.007]
[1765221823848,0.61946655,90109.0,90108.0,0.007]
[1765221824076,0.64325184,90109.0,90108.0,0.00638868]
[1765221824284,0.64525184,90109.0,90108.0,0.00038868]
[1765221824482,0.75473112,90109.0,90108.0,0.00138868]
[1765221824909,0.75173112,90109.0,90108.0,0.00138868]
[1765221825111,0.75173112,90109.0,90108.0,0.22334455]
[1765221825112,0.07609843,90109.0,90108.0,0.22334455]
[1765221825319,0.05531314,90109.0,90108.0,0.22334455]
[1765221825519,0.07291314,90109.0,90108.0,0.22334455]
[1765221825722,0.07191314,90109.0,90108.0,0.22234455]
[1765221825924,0.07191314,90109.0,90108.0,0.22334455]
[1765221825925,0.06259,90109.0,90108.0,0.22334455]
[1765221826363,0.06259,90109.0,90108.0,0.22234455]
[1765221826550,0.06259,90109.0,90108.0,0.22534455]
[1765221826551,0.04299,90109.0,90108.0,0.22534455]
[1765221826768,0.03787,90109.0,90108.0,0.22534455]
[1765221829244,0.03687,90109.0,90108.0,0.22534455]
[1765221829463,0.03387,90109.0,90108.0,0.22234455]
[1765221829665,0.03487,90109.0,90108.0,0.23234455]
[1765221829890,0.03487,90109.0,90108.0,0.23334455]
[1765221830671,0.0597,90109.0,90108.0,0.23334455]
[1765221831116,0.0421,90109.0,90108.0,0.23334455]
[1765221831367,0.03487,90109.0,90108.0,0.23334455]
[1765221832176,0.0597,90109.0,90108.0,0.23334455]
[1765221833122,0.0597,90109.0,90108.0,0.01138868]
[1765221833565,0.29199347,90109.0,90108.0,0.01138868]
[1765221833959,0.06984006,90109.0,90108.0,0.01038868]
[1765221834356,0.06984006,90109.0,90108.0,0.23234455]
[1765221835039,0.06984006,90109.0,90108.0,0.01038868]
[1765221835245,0.0585,90109.0,90108.0,0.00038868]
[1765221835663,0.0595,90109.0,90108.0,0.22834455]
[1765221836311,0.0595,90109.0,90108.0,0.00638868]
[1765221836826,0.28145341,90109.0,90108.0,0.00638868]
[1765221837380,0.0595,90109.0,90108.0,0.00638868]
[1765221837581,0.28145341,90109.0,90108.0,0.00638868]
[1765221838477,0.30365341,90109.0,90108.0,0.00638868]
[1765221838676,0.31398986,90109.0,90108.0,0.00638868]
[1765221839078,0.0817,90109.0,90108.0,0.00638868]
[1765221839506,0.30365341,90109.0,90108.0,0.00638868]
[1765221839706,0.0817,90109.0,90108.0,0.22834455]
[1765221840539,0.0595,90109.0,90108.0,0.22834455]
[1765221840752,0.0595,90109.0,90108.0,0.00638868]
[1765221841023,0.67289636,90109.0,90108.0,0.00638868]
[1765221841243,0.67289636,90109.0,90081.0,0.01110112]
[1765221841244,0.01110062,90085.0,90081.0,0.01110112]
[1765221841404,0.01110062,90085.0,90082.0,0.00318136]
[1765221841405,0.02547,90083.0,90082.0,0.00318136]
[1765221841845,0.04948,90083.0,90082.0,0.00318136]